Cogmind - Beta 17.1 @@@ ROGUE MODE // 2026.09.01 @ 22:25:44 Player: leiavoia Result: Destroyed by G-47 Trooper with Particle Gun Performance ------------- Evolutions (0) 0 Regions Visited (2) 400 Robots Destroyed (39) 195 Value Destroyed (765) 765 Prototype IDs (0) 0 Alien Tech Used (0) 0 Bonus (0) 0 TOTAL SCORE: 1360 Bonus ------- None Cogmind --------- Core Integrity 0/250 Matter 240/300 Energy 200/200 System Corruption 0% Temperature Cool (15) Movement Rolling (130) Ox2 Location -10/Subcaves Parts ------- > --- POWER (1) -------- Subdweller Power Source > --- PROPULSION (2) --- Subdweller Monowheel Subdweller Monowheel > --- UTILITY (2) ------ High-capacity Storage Unit Core Shielding > --- WEAPON (2) ------- Grenade Launcher Grenade Launcher > --- INVENTORY (20) --- Improved Ion Engine Improved Ion Engine Subdweller Power Source Spiked Treads Spiked Treads Heat Sink High-capacity Storage Unit Humpback Improved Terrain Scanner Seismic Detector Spread Laser Particle Cannon Particle Cannon Improved Light Cannon Improved Light Cannon Improved Light Cannon Slug Cannon Hammer Peak State ------------ > --- POWER ------------ Subdweller Power Source > --- PROPULSION ------- Subdweller Monowheel Subdweller Monowheel > --- UTILITY ---------- High-capacity Storage Unit Core Shielding > --- WEAPON ----------- Improved Light Cannon Slug Cannon > --- INVENTORY -------- Improved Ion Engine Improved Ion Engine Spiked Treads Spiked Treads Heat Sink High-capacity Storage Unit Humpback Improved Terrain Scanner Seismic Detector Spread Laser Particle Cannon Particle Cannon Improved Light Cannon Improved Light Cannon Improved Light Cannon Grenade Launcher Grenade Launcher Hammer [Rating: 17] Favorites ----------- Power Improved Ion Engine Engine Improved Ion Engine Propulsion Light Treads Treads Light Treads Wheel Subdweller Monowheel Utility High-capacity Storage Unit Device Heat Sink Storage High-capacity Storage Unit Protection Core Shielding Weapon Light Cannon Energy Gun Spread Laser Energy Cannon Beam Cannon Ballistic Gun Light Assault Rifle Ballistic Cannon Light Cannon Launcher Grenade Launcher Impact Weapon Hammer Build | -11 -10 -10 ------- Run | Yrd Mat Sub Slots Evolved . | . . . Power . | . . . Propulsion . | . . . Utility . | . . . Weapon . | . . . Parts Attached 36 | 8 12 16 Power 5 | 1 1 3 Engine 5 | 1 1 3 Core . | . . . Reactor . | . . . Propulsion 7 | 2 . 5 Treads 4 | 2 . 2 Leg . | . . . Wheel 3 | . . 3 Hover . | . . . Flight . | . . . Utility 7 | 2 5 . Device 3 | 1 2 . Storage 3 | 1 2 . Processor . | . . . Hackware . | . . . Protection 1 | . 1 . Artifact . | . . . Weapon 17 | 3 6 8 Energy Gun 3 | 1 . 2 Energy Cannon 1 | . 1 . Ballistic Gun 2 | 2 . . Ballistic Cannon 8 | . 3 5 Launcher 2 | . 2 . Special Weapon . | . . . Impact Weapon 1 | . . 1 Slashing Weapon . | . . . Piercing Weapon . | . . . Special Melee Weapon . | . . . Unidentified Prototypes . | . . . Parts Lost 8 | . . 8 Power 1 | . . 1 Propulsion 5 | . . 5 Utility . | . . . Weapon 2 | . . 2 Highest Loss Streak 5 | . . 5 To Critical Strikes . | . . . Average Backups 15 | 4 12 18 Power 1 | . . 2 Propulsion 1 | 2 1 1 Utility 4 | 1 3 4 Weapon 8 | . 6 9 Tool/Special . | . . . Unused Backups 14 | . 5 9 Power 2 | . 1 1 Propulsion 4 | . 2 2 Utility 4 | . 1 3 Weapon 4 | . 1 3 Tool/Special . | . . . Average Slot Usage (%) 99 | . 100 99 Engine 13 | . 14 13 Treads 23 | . 28 20 Wheel 4 | . . 7 Device 4 | . 11 . Storage 14 | . 14 14 Protection 9 | . 2 14 Energy Gun 8 | . 2 12 Ballistic Cannon 13 | . 18 10 Launcher 1 | . 3 . Impact Weapon 2 | . . 4 Peak Build Rating 17 | 7 11 17 Average Rating 11 | 5 8 13 On Entrance 6 | . 7 11 Avg Prop Armor Cover (%) 4 | . . 4 Naked Turns . | . . . Heaviest Build 57 | 13 54 57 Greatest Support 40 | 40 40 40 Greatest Overweight (x) 2 | . 1 2 Average Overweight (x) . | . . 1 Largest Inventory Capacity 20 | 8 20 20 Average Capacity 17 | 6 14 20 Most Carried 20 | 6 20 20 Average Carried 16 | 4 12 19 Final Capacity 20 | 8 20 20 Final Carried 20 | 6 20 19 Class Distribution -------------------- 100% | Mutant Dominant Class ---------------- Mutant | -10/Materials Mutant | -10/Subcaves Resources | -11 -10 -10 ----------- Run | Yrd Mat Sub Matter Collected 1161 | 302 225 634 Remotely . | . . . Salvage Created 780 | 112 276 392 Parts 58 | 7 27 24 Haulers Intercepted 1 | . 1 . Recyclers Shooed . | . . . Parts Field Recycled . | . . . Retrieved Matter . | . . . Parts Self-Destructed 14 | . . 14 Prevented . | . . . Parts Restored . | . . . Kills | -11 -10 -10 ------- Run | Yrd Mat Sub Combat Hostiles Destroyed 28 | . 14 14 Melee 1 | . . 1 Guns 7 | . . 7 Cannons 8 | . 3 5 AOE 11 | . 11 . Classes Destroyed 9 | 2 6 1 Worker 1 | . 1 . Builder 2 | . 2 . Tunneler 2 | 2 . . Hauler 1 | . 1 . Recycler 2 | 1 1 . Watcher 3 | . 3 . Swarmer 16 | . 12 4 Grunt 2 | . 2 . Subdweller 10 | . . 10 Best Kill Streak 9 | 3 9 4 Combat Bots Only 6 | . 6 4 Max Kills in Single Turn 3 | 1 3 2 Gunslinging 1 | . . 1 Exploded 3 | . 3 . Melee 1 | . . 1 Uniques/NPCs Destroyed . | . . . Combat | -11 -10 -10 -------- Run | Yrd Mat Sub Hostile Shots Fired 136 | . 58 78 Missed 35 | . 19 16 Hits 101 | . 39 62 Projectile 101 | . 39 62 AOE 5 | . . 5 Actively Blocked 1 | . . 1 Damage Taken 1950 | . 455 1495 Core 259 | . 79 180 Absorbed by Shields . | . . . Redirected to Shielding 41 | . . 41 Core Remaining (%) 100 | 100 . . Volleys Fired 89 | 11 37 41 Largest 2 | 2 2 2 Hottest 130 | 40 100 130 Shots Fired 160 | 22 56 82 Gun 62 | 22 10 30 Cannon 76 | . 28 48 Launcher 22 | . 18 4 Special . | . . . Kinetic 88 | 22 18 48 Thermal 50 | . 20 30 Explosive 22 | . 18 4 Electromagnetic . | . . . Robot Hit Streak 22 | 4 22 22 Robot Miss Streak 4 | 3 4 3 Penetration Max . | . . . Secondary Targets 3 | . . 3 Max Gunslinging Chain 1 | . . 1 Shots Hit Robots 126 | 11 25 90 Core Hits 72 | 7 27 38 Critical Kills 1 | . . 1 Critical Parts Destroyed 4 | . . 4 Critical Strikes 5 | . . 5 Smash 5 | . . 5 Melee Attacks 64 | . . 64 Impact 64 | . . 64 Slashing . | . . . Piercing . | . . . Sneak Attacks . | . . . Combat Hostiles . | . . . Follow-up Attacks . | . . . Damage Inflicted 3122 | 105 1226 1791 Guns 576 | 105 113 358 Cannons 930 | . 272 658 Explosions 952 | . 795 157 Melee 618 | . . 618 Ramming 46 | . 46 . Kinetic 855 | 105 92 658 Thermal 651 | . 293 358 Explosive 952 | . 795 157 Electromagnetic . | . . . Impact 618 | . . 618 Slashing . | . . . Piercing . | . . . Highest Corruption . | . . . Average Corruption . | . . . Corruption Purged . | . . . Corruption Blocked . | . . . Overload Shots . | . . . Overflow Damage 227 | . 48 179 Projectiles 10 | . 10 . Explosions 38 | . 38 . Melee 179 | . . 179 Knockbacks 7 | . . 7 Impact 3 | . . 3 Kinetic 4 | . . 4 Secondary . | . . . Self-Inflicted Damage 98 | . 98 . Shots 6 | . 6 . Rammed 8 | . 8 . Targets Rammed 10 | . 10 . Kicked . | . . . Crushed 2 | . 2 . Highest Temperature 87 | . 54 87 Average Temperature 28 | . 24 31 Received Heat Transfer 294 | . 24 270 Siege Activations . | . . . Martial Activations . | . . . Shielding Activations . | . . . Robots Disrupted . | . . . Combat Hostiles . | . . . Robots Corrupted 3 | . . 3 Combat Hostiles 3 | . . 3 Parts Fried 2 | . . 2 Impact Corruptions 5 | . . 5 Robots Melted . | . . . Combat Hostiles . | . . . Parts Melted 1 | . 1 . Heat Transferred 1055 | . 620 435 Parts Sabotaged . | . . . Parts Stolen . | . . . Parts Stripped . | . . . Power Chain Reactions . | . . . Alert | -11 -10 -10 ------- Run | Yrd Mat Sub Maximum Alert Level 1 | . 1 . Low Security (%) 85 | 100 84 . Level 1 14 | . 15 . Level 2 . | . . . Level 3 . | . . . Level 4 . | . . . Level 5 . | . . . High Security . | . . . Max Security . | . . . Peak Influence 293 | 10 293 . Initial . | . . . Average 115 | . 124 . Influence Increases 663 | 15 538 110 Destroy 0b10 Robot/C 360 | . 280 80 Destroy 0b10 Robot/NC 55 | 15 40 . Destroy Leader 58 | . 58 . Successful Hack 10 | . 10 . Disable Machine 75 | . 75 . Destroy Structure 75 | . 75 . Lose Combat Pursuer 30 | . . 30 Influence Decreases 663 | 15 510 138 Entered New Map 14 | . . 14 Time Decay 633 | 15 510 108 Lost Part 16 | . . 16 Squads Dispatched 3 | . 3 . Investigation 2 | . 2 . Extermination . | . . . Reinforcement 1 | . 1 . Assault . | . . . Garrison . | . . . Intercept . | . . . Searches Triggered . | . . . Construction Impeded . | . . . Haulers Reinforced . | . . . Active Scanning Responses . | . . . Cargo Convoy Interrupts . | . . . Stealth | -11 -10 -10 --------- Run | Yrd Mat Sub Distress Signals 2 | . 2 . Communications Jammed . | . . . Distress Signals . | . . . Times Spotted 37 | . 19 18 Peak Tracking Total 6 | . 5 6 Tactical Retreats 2 | . . 2 Traps | -11 -10 -10 ------- Run | Yrd Mat Sub Traps Triggered 5 | . 3 2 Indirectly . | . . . Trap Hack Attempts . | . . . Triggered . | . . . Disarmed . | . . . Reprogrammed . | . . . Reused . | . . . Traps Extracted . | . . . Installed . | . . . Triggered . | . . . Machines | -11 -10 -10 ---------- Run | Yrd Mat Sub Machines Disabled 5 | . 5 . Max in Single Turn 2 | . 2 . Machines Repaired . | . . . Machines Dismantled . | . . . Machines Sabotaged . | . . . Overloaded Fab Kills . | . . . Hacking | -11 -10 -10 --------- Run | Yrd Mat Sub Machines Accessed 10 | . 8 2 Terminals 6 | . 6 . Fabricators . | . . . Repair Stations 1 | . 1 . Recycling Units 1 | . 1 . Scanalyzers . | . . . Garrison Access . | . . . Total Hacks 16 | . 13 3 Successful 8 | . 5 3 Failed 7 | . 7 . Catastrophic . | . . . Database Lockouts 1 | . 1 . Manual 4 | . 4 . Terminals 10 | . 10 . Fabricators . | . . . Repair Stations 2 | . 2 . Recycling Units 1 | . 1 . Scanalyzers . | . . . Garrison Access . | . . . Terminal Hacks 6 | . 3 3 Record 1 | . . 1 Robot Analysis 1 | . 1 . Open Door 1 | . . 1 Emergency Access Points 1 | . 1 . Locate Traps 1 | . 1 . Release Object 1 | . . 1 Fabricator Hacks . | . . . Repair Station Hacks 1 | . 1 . Scan Component 1 | . 1 . Recycling Unit Hacks 1 | . 1 . Retrieve Components 1 | . 1 . Scanalyzer . | . . . Garrison Access Hacks . | . . . Unauthorized Hacks . | . . . Terminals . | . . . Fabricators . | . . . Repair Stations . | . . . Recycling Units . | . . . Scanalyzers . | . . . Garrison Access . | . . . Data Cores Recovered . | . . . Used . | . . . Hacking Detections 6 | . 6 . Full Trace Events . | . . . Feedback Events . | . . . Feedback Blocked . | . . . Robot Schematics Acquired . | . . . Robots Built . | . . . Authchips . | . . . Time . | . . . Total Robot Build Rating . | . . . Part Schematics Acquired . | . . . Parts Built . | . . . Authchips . | . . . Time . | . . . Total Part Build Rating . | . . . Part Studies Acquired . | . . . Parts Repaired . | . . . Time . | . . . Parts Recycled . | . . . Recycled Matter . | . . . Retrieved Matter . | . . . Retrieved Components 9 | . 9 . Parts Scanalyzed . | . . . Part Schematics Acquired . | . . . Parts Damaged . | . . . Bothacking | -11 -10 -10 ------------ Run | Yrd Mat Sub Used RIF Installer . | . . . Robots Hacked . | . . . Non-combat . | . . . Combat . | . . . Robot Hacks Applied . | . . . Relay Couplers Released . | . . . Fabnet Peak Effective % . | . . . Robots Rewired . | . . . Allies Hacked . | . . . Hacks Repelled . | . . . Allies | -11 -10 -10 -------- Run | Yrd Mat Sub Total Allies . | . . . Largest Group . | . . . Highest-Rated Group . | . . . Highest-Rated Ally . | . . . Total Orders . | . . . Ally Attacks . | . . . Total Damage . | . . . Kills . | . . . Allies Corrupted . | . . . Allies Melted . | . . . Intel | -11 -10 -10 ------- Run | Yrd Mat Sub Active Infowar (turns) 134 | 45 89 . Seismic 134 | 45 89 . Robot Analysis Total 1 | . 1 . Derelict Logs Recovered 1 | . . 1 Drone Launches . | . . . Drone Recoveries . | . . . Exploration | -11 -10 -10 ------------- Run | Yrd Mat Sub Turns Passed 4809 | 131 1813 2865 Spaces Moved 2094 | 66 843 1185 Core 19 | 19 . . Treads 1644 | 47 843 754 Legs . | . . . Wheels 431 | . . 431 Hover . | . . . Flight . | . . . Fastest Speed 50 | 50 160 120 Average Speed 193 | 128 192 197 Slowest Speed 240 | 160 240 240 Overloaded Moves . | . . . Propulsion Burnouts . | . . . Robots Hopped . | . . . Potential Cave-ins . | . . . Cave-ins Triggered . | . . . Exploration Rate (%) 56 | 4 97 67 Regions Visited 2 Branch Regions 1 Pre-discovered Areas 1 | . . 1 Known Exits Taken . | . . . Unknown Exits Taken 2 | 1 1 . Scrap Searched 10 | . . 10 Spaces Dug 6 | . . 6 Terrain Destroyed 101 | . 70 31 Melee 6 | . . 6 Projectile 4 | . . 4 AOE 91 | . 70 21 Terrain Rammed . | . . . Walls Destroyed . | . . . Machines Disabled . | . . . Actions | -11 -10 -10 --------- Run | Yrd Mat Sub Total 2562 | 92 967 1503 Wait 196 | . 23 173 Move 2092 | 65 842 1185 Hop . | . . . Pick Up 36 | 7 21 8 Fast Attach 9 | 6 3 . Attach 10 | 2 . 8 Detach 2 | 1 1 . Swap 35 | . 16 19 Drop 19 | . 14 5 Fire 89 | 11 37 41 Melee 64 | . . 64 Ram . | . . . Kick . | . . . Crush 10 | . 10 . Escape Stasis . | . . . Rewire . | . . . Trap . | . . . Miscellaneous . | . . . Route ------- -11/Scrapyard -10/Materials (discovered 5 exits: [*Mat x3] / [*Min] / *Sub) -10/Subcaves (discovered 1 exit: [*Mat]) History --------- Turn | Location | Event 19 | -11/Scrapyard | Discovered new exit (range 15) 132 | -11/Scrapyard | Entered Materials 348 | -10/Materials | Build established: Mutant 380 | -10/Materials | Discovered new exit (range 13) 389 | -10/Materials | Central database locked down 682 | -10/Materials | Discovered new exit (range 7) 933 | -10/Materials | Discovered new exit (range 10) 1216 | -10/Materials | Discovered new exit (range 13) 1317 | -10/Materials | Discovered new exit (range 10) 1945 | -10/Materials | Entered Subcaves 1946 | -10/Subcaves | Approached by a straggling Scientist 2171 | -10/Subcaves | A swath of the cavern ceiling suddenly collapsed 2644 | -10/Subcaves | Discovered new exit (range 14) 2874 | -10/Subcaves | Shifting Twisted Machinery released Sub. Machine Gun 3102 | -10/Subcaves | A swath of the cavern ceiling suddenly collapsed 3386 | -10/Subcaves | Shifting Twisted Machinery released Sub. Power Source 3876 | -10/Subcaves | Disturbed a concealed Subdweller 4031 | -10/Subcaves | Core integrity fell below 50% 4093 | -10/Subcaves | Lost 5 parts (1p3n1w) 4103 | -10/Subcaves | Core integrity fell below 20% 4173 | -10/Subcaves | Disturbed a concealed Subdweller 4305 | -10/Subcaves | Shifting Twisted Machinery released Piercing Trap 4330 | -10/Subcaves | Shifting Twisted Machinery released Slug Cannon 4338 | -10/Subcaves | Shifting Twisted Machinery released Mak. Light Armor Plating 4704 | -10/Subcaves | Learned location of Zion (-7) 4810 | -10/Subcaves | Destroyed by G-47 Trooper with Particle Gun Last Messages --------------- 04665_ Acquired 5 matter. 04678_ Acquired 1 matter. 04693_ Subatomizers dissect the Sub. Optics. 04704_ Acquired derelict log, extracted data. World map updated: -7/Zion. 04722_ Searching scrap... 04722_ Found Battle Rifle. 04722_ Found 58 Matter. 04723_ Acquired 17 matter. 04736_ Imp. Light Cannon destroyed. 04739_ ET-88Y(R) affixes Scrap Shield Fragment to Scrap Shield. 04748_ ET-88Y(R) destroyed. 04751_ Acquired 2 matter. 04752_ Acquired 3 matter. 04753_ Acquired 12 matter. 04755_ Acquired 1 matter. 04756_ Acquired 11 matter. 04757_ Acquired 43 matter. 04761_ Acquired 3 matter. Map ----- +----------------------------------------------------+ | ?????#" ## ##?????????????????????? #### ### | | ????##!&= #??????????????????????# #??## ##?? | | ????# ## ##?????????????????????? ???###???? | | ????## #?# ##????????????????????? ?????????? | | ????## #?# #????????????????????? ?????????? | | ????# ### #????????????????????? ?????????? | | ????## #????????????????????? ?????????? | | ?????## #?????????????????????# #?????????? | | ??????# #??????????????????????#??????????? | | ??????# #?????????????????????????????????? | | ??????## #?????????????????????????????????? | | ??????## ##?????????????????????????????????? | | ??????# #####??????????????????????????????????? | | ??????# #??????????????????????????????????????? | | ??????# #??????????????????????????????????????? | | ??????## ##?????????????????????????????????????? | | ??????## #?????????????????????????????????????? | | ??????# ##?????????????????????????????????????? | | ??????# ####???????????????????????????????????? | | ??????## ##???????????###????????##??????????? | | ????#### #?????????## ##????? #??????????? | | #??## ## ## ##?????##### ##?? ##?????? | | #### ##???### # # #????? | | "# #" ##?## g ???? | | ["% ### g ?????# | | &! #" ####@ ??????# | | "## ### # # ##??# #????????# | | ###### ##?# #####???# ## ##???????????? | | ?????# #?# #???????##### #???????????????? | | ?????## ##?#####????????????#####???????????????? | | ??????# #??????????????????????????????????????? | | ??????### #??????????????????????????????????????? | | ?????????##??????????????????????????????????????? | | ?????????????????????????????????????????????????# | | ?????????????????????????????????????????????##### | | ????????????????????????????????????????????## | | ????????????????????????????????????????????# | | ????????????????????????????????????????????# | | ???????????###??????????????????????????????# | | ??????????## #??????????????????????????????# ## | | ??????????# ##?????????????????????????????###### | | ????????### #???????????????????????????????# | | ????????# ##??????????????????????????????# | | ???????## ####???????????????????????????# | | ???????# #####?######????????????????## # | | ???????# ### # ###" %%#????????????????#### | | ???????# ### ##&[ &##???????????????## # | | ???????## ### ## ####??????????????### | | ????????## ## #""##" #??????????????# | | ????????## #### ""# ##%###??###?######## ] | +----------------------------------------------------+ Best States ------------- Heat Dissipation 35 Energy Generation 15 Energy Capacity 265 Matter Stores 300 Matter Capacity 300 Sight Range 16 Terrain Scan Density 10 Core Shielding 20 Evasion (%) 50 Recoil Reduction 2 Item Schematics ----------------- None Robot Schematics ------------------ None Fabricated ------------ Nothing Repaired ---------- Nothing Studied --------- None Alien Tech Used ----------------- None Achievements -------------- None Challenges ------------ None Game ------ Seed InsulationNetworkInsulator Manual? 0 Play Time 00:27:05 Cumulative 1216.1 hours Start 2026.09.01 @ 21:59:44 End 2026.09.01 @ 22:25:44 Sessions 1 Manual Loads 0 Difficulty Rogue Special Mode None Game No. 267 Rogue 235 Adventurer 31 Explorer 1 Win Type - Total 58 Types 37/2/9/7/0/0/2/0/0/1 Lore% 78 Gallery% 77 Achievement% 53 Wizard Run 0 Options --------- Layout 1 ASCII 0 Keyboard 0 Movement Arrows Keybinds 0 Fullscreen 1 Font 24/Terminus Map View 50x40 Zoom Use 0% Tactical HUD 1 Map Filters NONE Filters NONE Steam 1 RUN: dd58e63f-70fd-4b8c-8d0c-71472f4551ff